[Event "IND-ch Women 2019"]
[Site "Karaikkudi"]
[Date "2019.07.27"]
[Round "11.21"]
[White "Shriya R Revankar"]
[Black "Shetye, Siddhali"]
[Result "1-0"]
[ECO "C77"]
[WhiteElo "1627"]
[BlackElo "1837"]
[Annotator "NA RC"]
[PlyCount "153"]
[EventDate "2019.07.19"]
[EventType "swiss"]
[EventCountry "IND"]
[SourceTitle "playchess.com"]
[Source "ChessBase"]
[SourceQuality "1"]
[TimeControl "40/5400+30:1800+30"]

1. e4 {[%emt 0:00:00]} e5 {[%emt 0:00:00]} 2. Nf3 {[%emt 0:00:00]} Nc6 {[%emt 0:00:00]} 3. Bb5 {[%emt 0:00:00]} a6 {[%emt 0:00:00]} 4. Ba4 {[%emt 0:00:00]} Nf6 {[%emt 0:00:00]} 5. d3 {[%emt 0:00:20]} b5 {[%emt 0:00:13]} 6. Bb3 {[%emt 0:00:04]} Bc5 {[%emt 0:00:13]} 7. Nc3 {[%emt 0:01:22]} h6 {[%emt 0:02:06]} 8. Nd5 {[%emt 0:00:32]} d6 {[%emt 0:05:00]} 9. c3 {[%emt 0:00:21]} Nxd5 {[%emt 0:11:59]} 10. Bxd5 {[%emt 0:04:39]} Bb7 $14 {[%emt 0:07:53]} 11. b4 {[%emt 0:04:38]} Bb6 {[%emt 0:03:07]} 12. a4 {[%emt 0:00:41]} Rb8 {[%emt 0:05:52]} 13. Be3 {[%emt 0:05:28]} Ne7 {[%emt 0:12:02]} 14. Bxb7 {[%emt 0:05:27]} Rxb7 {[%emt 0:01:22]} 15. O-O {[%emt 0:01:51]} O-O {[%emt 0:04:00]} 16. a5 {[%emt 0:01:52]} Bxe3 {[%emt 0:02:04]} 17. fxe3 {[%emt 0:00:05]} Ng6 {[%emt 0:01:06]} 18. d4 {[%emt 0:03:06]} Qe7 {[%emt 0:07:27]} 19. dxe5 {[%emt 0:09:06]} Nxe5 {[%emt 0:04:45]} 20. Nxe5 {[%emt 0:00:10]} Qxe5 {[%emt 0:01:11]} 21. Qd5 {[%emt 0:00:29]} Qxd5 {[%emt 0:01:31]} 22. exd5 {[%emt 0:00:06]} Re8 {[%emt 0:00:11]} 23. Kf2 {[%emt 0:02:25]} Re5 {[%emt 0:00:40]} 24. Rfd1 {[%emt 0:00:20]} Rb8 {[%emt 0:00:45]} 25. Rd4 {[%emt 0:04:13]} Rbe8 {[%emt 0:10:26]} 26. Re1 {[%emt 0:01:10]} R8e7 {[%emt 0:04:45]} 27. c4 {[%emt 0:10:03]} bxc4 {[%emt 0:02:32]} 28. Rxc4 {[%emt 0:00:08]} Rxd5 {[%emt 0:02:25]} 29. Rc6 {[%emt 0:00:19]} Re4 {[%emt 0:03:33]} 30. Rb1 {[%emt 0:00:34]} Rb5 {[%emt 0:02:57]} 31. Rxc7 {[%emt 0:00:16]} Rexb4 {[%emt 0:01:38]} 32. Rxb4 {[%emt 0:00:05]} Rxb4 {[%emt 0:00:06]} 33. Rc8+ {[%emt 0:00:37]} Kh7 {[%emt 0:00:07]} 34. Rc6 {[%emt 0:00:07]} Ra4 {[%emt 0:00:44]} 35. Rxa6 {[%emt 0:00:06]} f6 {[%emt 0:00:31]} 36. Ra8 {[%emt 0:01:10]} Kg6 {[%emt 0:01:19]} 37. a6 {[%emt 0:00:16]} d5 {[%emt 0:01:02]} 38. a7 {[%emt 0:00:35]} Kh7 {[%emt 0:01:21]} 39. Ke2 {[%emt 0:03:07]} Ra3 {[%emt 0:01:14]} 40. Kd2 {[%emt 0:00:00]} Ra2+ {[%emt 0:00:00]} 41. Kc3 {[%emt 0:02:21]} Ra4 {[%emt 0:01:29]} 42. Kb3 {[%emt 0:00:44]} Ra1 {[%emt 0:02:15]} 43. Kb4 {[%emt 0:00:17]} Ra2 {[%emt 0:00:33]} 44. Kc5 {[%emt 0:00:08]} Rc2+ {[%emt 0:00:55]} 45. Kxd5 {[%emt 0:02:21]} Ra2 {[%emt 0:01:20]} 46. g4 {[%emt 0:02:00]} Ra1 {[%emt 0:04:10]} 47. Ke4 {[%emt 0:01:59]} Ra5 {[%emt 0:00:09]} 48. h4 {[%emt 0:00:17]} Kg6 {[%emt 0:02:42]} 49. Kf4 {[%emt 0:00:34]} Ra4+ {[%emt 0:04:12]} 50. e4 {[%emt 0:00:52]} Ra5 {[%emt 0:00:39]} 51. Ke3 {[%emt 0:02:30]} Ra4 {[%emt 0:00:19]} 52. Kd3 {[%emt 0:00:11]} Ra1 {[%emt 0:00:39]} 53. Kc4 {[%emt 0:00:45]} Rc1+ {[%emt 0:00:12]} 54. Kd5 {[%emt 0:00:15]} Ra1 {[%emt 0:00:32]} 55. Ke6 {[%emt 0:00:32]} Ra6+ {[%emt 0:00:35]} 56. Ke7 {[%emt 0:00:42]} Ra4 {[%emt 0:00:52]} 57. Kf8 {[%emt 0:01:22]} Ra6 {[%emt 0:04:12]} 58. Kg8 {[%emt 0:00:23]} h5 {[%emt 0:03:21]} 59. gxh5+ {[%emt 0:00:25]} Kh6 {[%emt 0:00:09]} 60. Kf7 {[%emt 0:00:20]} Kh7 {[%emt 0:00:07]} 61. h6 {[%emt 0:00:49]} g6 {[%emt 0:07:54]} 62. Re8 {[%emt 0:00:50]} Rxa7+ {[%emt 0:00:33]} 63. Kxf6 {[%emt 0:00:08]} Ra4 {[%emt 0:00:49]} 64. Kg5 {[%emt 0:00:48]} Ra7 {[%emt 0:00:56]} 65. e5 {[%emt 0:01:21]} Rf7 {[%emt 0:00:54]} 66. e6 {[%emt 0:01:37]} Rf5+ {[%emt 0:00:01]} 67. Kg4 {[%emt 0:00:06]} Re5 {[%emt 0:00:24]} 68. Kf4 {[%emt 0:12:33]} Re1 {[%emt 0:00:20]} 69. Kg5 {[%emt 0:00:12]} Rg1+ {[%emt 0:01:35]} 70. Kf6 {[%emt 0:00:10]} Rf1+ {[%emt 0:00:04]} 71. Ke7 {[%emt 0:01:18]} Kxh6 {[%emt 0:00:49]} 72. Rf8 {[%emt 0:00:08]} Ra1 {[%emt 0:01:08]} 73. Kf7 {[%emt 0:00:17]} Rf1+ {[%emt 0:01:08]} 74. Ke8 {[%emt 0:00:11]} Re1 {[%emt 0:00:08]} 75. e7 {[%emt 0:00:09]} Kg7 {[%emt 0:00:22]} 76. Kd7 {[%emt 0:00:33]} Rd1+ {[%emt 0:00:29]} 77. Kc6 {[%emt 0:00:06]} 1-0